Cogmind - Beta 14 @@@ ROGUE MODE // 2024.09.01 @ 12:31:57 Player: VR-DUX Result: Destroyed by as-70222 with Assembled Rifle Performance ------------- Evolutions (0) 0 Regions Visited (3) 600 Robots Destroyed (33) 165 Value Destroyed (786) 786 Prototype IDs (23) 460 Alien Tech Used (0) 0 Bonus (300) 300 TOTAL SCORE: 2311 Bonus ------- Aligned with FarCom 300 Cogmind --------- Core Integrity 0/250 Matter 14/300 Energy 250/250 System Corruption 5% Temperature Cool (0) Movement Rolling (175) Ox5 Location -10/Exiles Parts ------- > --- POWER (1) -------- Ion Engine > --- PROPULSION (2) --- Compact Wheel > --- UTILITY (2) ------ Huge Storage Unit Modified TNC > --- WEAPON (2) ------- Grenade Launcher > --- INVENTORY (25) --- Light Ion Engine Light Treads Aluminum Leg Wheel Small Storage Unit Medium Storage Unit Superbattery (1500) Structural Scanner 0b10 Alert Chip EM Pulse Gun Assault Rifle Light Assault Rifle Heavy Battle Rifle Light Cannon Light Cannon Peak State ------------ > --- POWER ------------ Ion Engine > --- PROPULSION ------- Light Treads Wheel > --- UTILITY ---------- Superbattery Modified TNC > --- WEAPON ----------- EM Pulse Gun Grenade Launcher > --- INVENTORY -------- Light Treads Compact Wheel Huge Storage Unit Heavy Battle Rifle Light Cannon [Rating: 21] Favorites ----------- Power Ion Engine Engine Ion Engine Propulsion Light Treads Treads Light Treads Leg Aluminum Leg Wheel Compact Wheel Utility Structural Scanner Device Structural Scanner Storage Huge Storage Unit Processor Modified TNC Weapon Light Cannon Energy Gun Small Laser Ballistic Gun Light Assault Rifle Ballistic Cannon Light Cannon Launcher Grenade Launcher Build | -11 -10 -10 -10 ------- Run | Yrd Mat Min Exi Slots Evolved . | . . . . Power . | . . . . Propulsion . | . . . . Utility . | . . . . Weapon . | . . . . Parts Attached 31 | 4 11 6 10 Power 1 | . 1 . . Engine 1 | . 1 . . Core . | . . . . Reactor . | . . . . Propulsion 8 | 2 2 2 2 Treads 3 | 1 1 1 . Leg . | . . . . Wheel 5 | 1 1 1 2 Hover . | . . . . Flight . | . . . . Utility 9 | 1 3 . 5 Device 3 | 1 2 . . Storage 5 | . 1 . 4 Processor 1 | . . . 1 Hackware . | . . . . Protection . | . . . . Artifact . | . . . . Weapon 13 | 1 5 4 3 Energy Gun 3 | . 1 1 1 Energy Cannon . | . . . . Ballistic Gun 3 | 1 2 . . Ballistic Cannon 2 | . . 2 . Launcher 5 | . 2 1 2 Special Weapon . | . . . . Impact Weapon . | . . . . Slashing Weapon . | . . . . Piercing Weapon . | . . . . Special Melee Weapon . | . . . . Unidentified Prototypes . | . . . . Parts Lost 3 | . . 1 2 Power . | . . . . Propulsion 1 | . . . 1 Utility . | . . . . Weapon 2 | . . 1 1 Highest Loss Streak 2 | . . 1 2 To Critical Strikes . | . . . . Average Slot Usage (%) 90 | . 100 89 80 Engine 14 | . 14 14 14 Treads 15 | . 19 14 13 Wheel 11 | . 8 11 14 Device 12 | . 14 14 6 Storage 13 | . 14 14 13 Processor 1 | . . . 5 Energy Gun 2 | . 2 1 5 Ballistic Gun 7 | . 24 1 . Ballistic Cannon 8 | . . 16 . Launcher 1 | . . . 6 Peak Build Rating 21 | 9 9 8 21 Average Rating 8 | 7 7 7 11 On Entrance 7 | 6 9 8 6 Naked Turns . | . . . . Heaviest Build 205 | 14 88 92 205 Greatest Support 20 | 20 20 20 20 Greatest Overweight (x) 12 | 1 5 5 12 Average Overweight (x) 4 | . 2 4 5 Largest Inventory Capacity 35 | 8 25 25 35 Average Capacity 22 | 8 17 25 24 Most Carried 22 | 6 13 13 22 Average Carried 11 | 5 9 11 15 Final Capacity 25 | 8 25 25 25 Final Carried 15 | 5 12 13 15 Class Distribution -------------------- 98% | Mutant Dominant Class ---------------- Mutant | -10/Materials Mutant | -10/Mines Mutant | -10/Exiles Resources | -11 -10 -10 -10 ----------- Run | Yrd Mat Min Exi Matter Collected 853 | 231 399 223 . Remotely . | . . . . Salvage Created 910 | 110 560 226 14 Parts 64 | 5 50 9 . Haulers Intercepted 1 | . 1 . . Recyclers Shooed 2 | 1 1 . . Parts Field Recycled . | . . . . Retrieved Matter . | . . . . Parts Self-Destructed . | . . . . Prevented . | . . . . Kills | -11 -10 -10 -10 ------- Run | Yrd Mat Min Exi Combat Hostiles Destroyed 29 | . 18 7 4 Guns 15 | . 14 1 . Cannons 4 | . . 4 . AOE 10 | . 4 2 4 Classes Destroyed 9 | 2 6 . 1 Builder 2 | . 2 . . Tunneler 1 | 1 . . . Hauler 1 | . 1 . . Recycler 2 | 1 . 1 . Mechanic 1 | . 1 . . Operator 1 | . 1 . . Swarmer 9 | . 6 3 . Grunt 16 | . 12 4 . Assembled 4 | . . . 4 Best Kill Streak 4 | 2 4 2 4 Combat Bots Only 4 | . 3 2 4 Max Kills in Single Turn 3 | 1 2 1 3 Gunslinging . | . . . . Exploded 3 | . 1 1 3 Melee . | . . . . Uniques/NPCs Destroyed . | . . . . Combat | -11 -10 -10 -10 -------- Run | Yrd Mat Min Exi Hostile Shots Fired 137 | . 66 36 35 Missed 43 | . 21 5 17 Damage Taken 986 | . 451 317 218 Core 251 | . 107 84 60 Absorbed by Shields . | . . . . Core Remaining (%) 100 | 100 . . . Volleys Fired 128 | 11 92 23 2 Largest 2 | 2 2 2 2 Hottest 70 | 60 60 70 60 Shots Fired 241 | 22 172 42 5 Gun 190 | 22 160 7 1 Cannon 32 | . . 32 . Launcher 19 | . 12 3 4 Special . | . . . . Kinetic 189 | 11 142 36 . Thermal 21 | . 18 3 . Explosive 19 | . 12 3 4 Electromagnetic 12 | 11 . . 1 Robot Hit Streak 10 | 7 10 2 1 Robot Miss Streak 11 | 3 5 11 1 Penetration Max . | . . . . Secondary Targets 3 | . 3 . . Max Gunslinging Chain 1 | . 1 . . Shots Hit Robots 92 | 11 68 12 1 Core Hits 70 | 3 46 13 8 Critical Kills 1 | . 1 . . Critical Parts Destroyed . | . . . . Critical Strikes 2 | . 1 1 . Destroy 1 | . 1 . . Blast 1 | . . 1 . Melee Attacks . | . . . . Impact . | . . . . Slashing . | . . . . Piercing . | . . . . Sneak Attacks . | . . . . Combat Hostiles . | . . . . Follow-up Attacks . | . . . . Damage Inflicted 1754 | 132 1039 404 179 Guns 813 | 132 647 34 . Cannons 166 | . . 166 . Explosions 767 | . 392 196 179 Melee . | . . . . Ramming 8 | . . 8 . Kinetic 812 | 21 602 189 . Thermal 56 | . 45 11 . Explosive 767 | . 392 196 179 Electromagnetic 111 | 111 . . . Impact . | . . . . Slashing . | . . . . Piercing . | . . . . Highest Corruption 5 | . 5 5 5 Average Corruption 4 | . 2 5 5 Corruption Purged . | . . . . Corruption Blocked . | . . . . Effects 85 | . 8 52 25 Message Errors 19 | . 2 13 4 Matter Fused 22 | . 2 13 7 Heat Flow Errors 12 | . 3 6 3 Energy Discharges 14 | . 1 10 3 Parts Rejected 1 | . . 1 . Data Loss (minor) 7 | . . 4 3 Data Loss (major) 6 | . . 3 3 Misfires 3 | . . 2 1 Alerts 1 | . . . 1 Overload Shots . | . . . . Overflow Damage 19 | . 19 . . Projectiles . | . . . . Explosions 19 | . 19 . . Melee . | . . . . Knockbacks 2 | . . 2 . Impact . | . . . . Kinetic 2 | . . 2 . Secondary . | . . . . Self-Inflicted Damage 16 | . 16 . . Shots 1 | . 1 . . Rammed 3 | . . 3 . Targets Rammed 3 | . . 3 . Kicked . | . . . . Crushed . | . . . . Highest Temperature 263 | 40 205 234 263 Average Temperature 61 | 23 60 59 105 Received Heat Transfer 252 | . 123 129 . Siege Activations . | . . . . Robots Corrupted . | . . . . Combat Hostiles . | . . . . Parts Fried . | . . . . Impact Corruptions . | . . . . Robots Melted . | . . . . Combat Hostiles . | . . . . Parts Melted . | . . . . Heat Transferred 125 | . 100 25 . Parts Sabotaged . | . . . . Parts Stolen . | . . . . Parts Stripped . | . . . . Power Chain Reactions . | . . . . Alert | -11 -10 -10 -10 ------- Run | Yrd Mat Min Exi Peak Influence 393 | 10 393 293 . Initial 125 | . 6 125 . Average 109 | 3 214 59 . Maximum Alert Level 1 | . 1 1 . Low Security (%) 75 | 100 41 91 . Level 1 24 | . 58 8 . Level 2 . | . . . . Level 3 . | . . . . Level 4 . | . . . . Level 5 . | . . . . High Security . | . . . . Max Security . | . . . . Squads Dispatched 5 | . 5 . . Investigation 3 | . 3 . . Extermination . | . . . . Reinforcement 2 | . 2 . . Assault . | . . . . Garrison . | . . . . Intercept . | . . . . Searches Triggered . | . . . . Construction Impeded . | . . . . Haulers Reinforced . | . . . . Active Scanning Responses . | . . . . Cargo Convoy Interrupts . | . . . . Stealth | -11 -10 -10 -10 --------- Run | Yrd Mat Min Exi Distress Signals 3 | . 3 . . Communications Jammed . | . . . . Distress Signals . | . . . . Times Spotted 46 | . 30 7 9 Peak Tracking Total 10 | . 4 3 10 Tactical Retreats 2 | . 1 . 1 Traps | -11 -10 -10 -10 ------- Run | Yrd Mat Min Exi Traps Triggered 4 | . 4 . . Indirectly . | . . . . Trap Hack Attempts . | . . . . Triggered . | . . . . Disarmed . | . . . . Reprogrammed . | . . . . Reused . | . . . . Traps Extracted . | . . . . Installed . | . . . . Triggered . | . . . . Machines | -11 -10 -10 -10 ---------- Run | Yrd Mat Min Exi Machines Disabled 6 | . 3 1 2 Max in Single Turn 2 | . 2 1 1 Machines Repaired . | . . . . Machines Dismantled . | . . . . Machines Sabotaged . | . . . . Overloaded Fab Kills . | . . . . Hacking | -11 -10 -10 -10 --------- Run | Yrd Mat Min Exi Machines Accessed 7 | . 4 1 2 Terminals 4 | . 3 1 . Fabricators . | . . . . Repair Stations . | . . . . Recycling Units 1 | . 1 . . Scanalyzers . | . . . . Garrison Access . | . . . . Total Hacks 11 | . 8 1 2 Successful 4 | . 1 1 2 Failed 7 | . 7 . . Catastrophic 2 | . 2 . . Database Lockouts . | . . . . Manual 11 | . 10 . 1 Terminals 7 | . 6 1 . Fabricators . | . . . . Repair Stations . | . . . . Recycling Units 2 | . 2 . . Scanalyzers . | . . . . Garrison Access . | . . . . Terminal Hacks 4 | . 1 1 2 Record 1 | . . . 1 Robot Analysis 1 | . 1 . . Zone Layout 1 | . . 1 . Derelict Proto ID Bank 1 | . . . 1 Fabricator Hacks . | . . . . Repair Station Hacks . | . . . . Recycling Unit Hacks . | . . . . Scanalyzer . | . . . . Garrison Access Hacks . | . . . . Unauthorized Hacks . | . . . . Terminals . | . . . . Fabricators . | . . . . Repair Stations . | . . . . Recycling Units . | . . . . Scanalyzers . | . . . . Garrison Access . | . . . . Data Cores Recovered . | . . . . Used . | . . . . Hacking Detections 4 | . 4 . . Full Trace Events 3 | . 3 . . Feedback Events . | . . . . Feedback Blocked . | . . . . Robot Schematics Acquired . | . . . . Robots Built . | . . . . Authchips . | . . . . Time . | . . . . Total Robot Build Rating . | . . . . Part Schematics Acquired . | . . . . Parts Built . | . . . . Authchips . | . . . . Time . | . . . . Total Part Build Rating . | . . . . Parts Repaired . | . . . . Time . | . . . . Parts Recycled . | . . . . Recycled Matter . | . . . . Retrieved Matter . | . . . . Retrieved Components . | . . . . Parts Scanalyzed . | . . . . Part Schematics Acquired . | . . . . Parts Damaged . | . . . . Bothacking | -11 -10 -10 -10 ------------ Run | Yrd Mat Min Exi Used RIF Installer . | . . . . Robots Hacked . | . . . . Non-combat . | . . . . Combat . | . . . . Robot Hacks Applied . | . . . . Relay Couplers Released . | . . . . Fabnet Peak Effective % . | . . . . Robots Rewired . | . . . . Allies Hacked . | . . . . Hacks Repelled . | . . . . Allies | -11 -10 -10 -10 -------- Run | Yrd Mat Min Exi Total Allies . | . . . . Largest Group . | . . . . Highest-Rated Group . | . . . . Highest-Rated Ally . | . . . . Total Orders . | . . . . Ally Attacks . | . . . . Total Damage . | . . . . Kills . | . . . . Allies Corrupted . | . . . . Allies Melted . | . . . . Intel | -11 -10 -10 -10 ------- Run | Yrd Mat Min Exi Robot Analysis Total 1 | . 1 . . Derelict Logs Recovered 1 | . . 1 . Drone Launches . | . . . . Drone Recoveries . | . . . . Exploration | -11 -10 -10 -10 ------------- Run | Yrd Mat Min Exi Turns Passed 4017 | 53 1031 2072 861 Spaces Moved 1461 | 14 473 520 454 Core . | . . . . Treads 532 | . 176 352 4 Legs 8 | 8 . . . Wheels 921 | 6 297 168 450 Hover . | . . . . Flight . | . . . . Fastest Speed 80 | 95 95 175 80 Average Speed 245 | 109 161 381 179 Slowest Speed 480 | 120 175 480 480 Overloaded Moves . | . . . . Propulsion Burnouts . | . . . . Robots Hopped . | . . . . Cave-ins Triggered . | . . . . Exploration Rate (%) 56 | 2 66 91 67 Regions Visited 3 Branch Regions 2 Pre-discovered Areas 1 | . . . 1 Known Exits Taken . | . . . . Unknown Exits Taken 3 | 1 1 1 . Scrap Searched 1 | . . 1 . Spaces Dug . | . . . . Terrain Destroyed 88 | . 65 10 13 Melee . | . . . . Projectile . | . . . . AOE 88 | . 65 10 13 Terrain Rammed . | . . . . Walls Destroyed . | . . . . Machines Disabled . | . . . . Actions | -11 -10 -10 -10 --------- Run | Yrd Mat Min Exi Total 1679 | 30 593 562 494 Wait 7 | . 3 4 . Move 1458 | 13 472 519 454 Hop . | . . . . Pick Up 33 | . 9 3 21 Fast Attach 10 | 2 3 . 5 Attach 6 | . 1 4 1 Detach 3 | . . 2 1 Swap 15 | 2 7 2 4 Drop 16 | 2 6 2 6 Fire 128 | 11 92 23 2 Melee . | . . . . Ram . | . . . . Kick . | . . . . Crush 3 | . . 3 . Escape Stasis . | . . . . Rewire . | . . . . Trap . | . . . . Miscellaneous . | . . . . Route ------- -11/Scrapyard -10/Materials (discovered 3 exits: [*Mat x2] / *Min) -10/Mines (discovered 4 exits: [*Mat x2] / *Exi / [Sub]) -10/Exiles History --------- Turn | Location | Event 1 | -11/Scrapyard | Discovered new exit (range 2) 54 | -11/Scrapyard | Entered Materials 280 | -10/Materials | Discovered new exit (range 6) 312 | -10/Materials | Build established: Mutant 593 | -10/Materials | Discovered new exit (range 10) 802 | -10/Materials | Discovered new exit (range 16) 1085 | -10/Materials | Entered Mines 1092 | -10/Mines | Met a Derelict bent on vengeance 1231 | -10/Mines | Discovered new exit (range 7) 1276 | -10/Mines | Discovered new exit (range 8) 1301 | -10/Mines | Core integrity fell below 50% 1316 | -10/Mines | Learned Materials stockpile data 1466 | -10/Mines | A weapon hastily lodged in a ceiling crevice suddenly fell to the ground 1678 | -10/Mines | Discovered new exit (range 13) 3133 | -10/Mines | Deemed a non-threat by the Exiles lab entrance 3133 | -10/Mines | Discovered new exit (range 6) 3157 | -10/Mines | Entered Exiles 3213 | -10/Exiles | Met 8R-AWN 3281 | -10/Exiles | Met EX-HEX 3330 | -10/Exiles | Met EX-BIN 3355 | -10/Exiles | Aligned with FarCom system 3356 | -10/Exiles | Given EX-Vault access code 3397 | -10/Exiles | Opened EX-Vault 3407 | -10/Exiles | Found Superbattery 3413 | -10/Exiles | Found Modified TNC 3416 | -10/Exiles | Found 0b10 Alert Chip 3457 | -10/Exiles | Warned to stay clear of 0b10 Research branches 3508 | -10/Exiles | Met EX-DEC 3524 | -10/Exiles | Learned location of Zion (-6) 3958 | -10/Exiles | Attacked by the Exiles 3992 | -10/Exiles | Core integrity fell below 20% 4018 | -10/Exiles | Destroyed by as-70222 with Assembled Rifle Last Messages --------------- 03958_ Machine disabled. 03986_ System corrupted: Substantial component data lost. 03987_ as-98581 destroyed. 03987_ Machine disabled. 03987_ as-91561 destroyed. 03987_ as-58175 destroyed. 03987_ Machine disabled. 03990_ as-15865 destroyed. 03997_ The unstable cave ceiling collapses. 03998_ Dropped Rigged Rnf. Deuterium Engine. 04002_ Dropped Rigged Fission Core. 04004_ Rigged Rnf. Deuterium Engine explodes. 04004_ as-57528 destroyed. 04007_ Rigged Fission Core explodes. 04007_ Machine disabled. 04008_ Dropped Rigged Lgt. Fission Core. 04008_ Lgt. Treads destroyed. 04010_ System corrupted: Component data lost. 04013_ Grenade Launcher destroyed. Map ----- +----------------------------------------------------+ | ?????????????????????????????????????????????????? | | ?????????????????????????????????????????????????? | | ?????????????????????????????????????????????????? | | ?????????????????????????????????????????????????? | | ?????????????????????????????????????????????????? | | ?????????????????????????????????????????????????? | | ?????????????????????????????????????????????????? | | ?????????????????????????????????????????????????? | | ?????????????????????????????????????????????????? | | ?????????????????????????????????????????????????? | | ?????????????????????????????????????????????????? | | ?????????????????????????????????????????????????? | | ?????????????????????????????????????????????????? | | ?????????????????????????????????????????????????? | | ?????????????? ?????????????????????????????????? | | ?????????????? ????????????????????????????????? | | ????????????? ?????????????#########?????????? | | ?????????????# #######?????#########?????????? | | ?????????????# ########????##!!! "##?????????? | | ?????????????# #""##????## "##?????????? | | ??????????????# ##??### "##?????????? | | ???????????????#" ####### ""##?????????? | | ??????????????#"" #####" ""##?????????? | | ?????????????????# ##" ""##?????????? | | ??????????????????# #" ###??????????? | | ????????????????????## @ ###??????????? | | ????????????????????##### ###??????????? | | ?????????????????########## #####???????? | | ?????????????????#########" z #??????? | | ?????????????????## !!""""" aa% ####?## | | ?????????????????##! # ######## | | ?????????????????##! * ; ; """##### | | ?????????????????##! ##### | | ?????????????????##! """"""#######" % | | ?????????????????##############?#### | | ?????????????????############???####### | | ???????????????????????????????????###### | | ?????????????????????????????????????##### | | ???????????????????????????????????????#### | | ????????????????????????????????????????####" | | ?????????????????????????????????????????###""" | | ??????????????????????????????????????????##" | | ??????????????????????????????????????????#"" | | ??????????????????????????????????????????#""" | | ?????????????????????????????????????????#""" | | ?????????????????????????????????????????#""" | | ?????????????????????????????????????????#"" | | ?????????????????????????????????????????#""" | | ?????????????????????????????????????????#"" | | ??????????????????????????????????????????#"" | +----------------------------------------------------+ Best States ------------- Heat Dissipation 25 Energy Generation 10 Energy Capacity 1750 Matter Stores 300 Matter Capacity 300 Sight Range 16 Terrain Scan Range 16 Terrain Scan Density 10 Evasion (%) 41 Recoil Reduction 1 Item Schematics ----------------- None Robot Schematics ------------------ None Fabricated ------------ Nothing Alien Tech Used ----------------- None Achievements -------------- None Challenges ------------ None Game ------ Seed FieldSpreadManipulator Manual? 0 Play Time 00:20:22 Cumulative 259.8 hours Start 2024.09.01 @ 12:12:11 End 2024.09.01 @ 12:31:57 Sessions 1 Manual Loads 0 Difficulty Rogue Special Mode None Game No. 153 Rogue 153 Adventurer 0 Explorer 0 Win Type - Total 7 Types 4/1/2/0/0/0/0/0/0 Lore% 49 Gallery% 57 Achievement% 55 Wizard Run 0 Options --------- Layout 1 ASCII 0 Keyboard 0 Movement Mouse Keybinds 0 Fullscreen 1 Font 20/SmallcapsGlow Map View 58x39 Zoom Use 3% Tactical HUD 1 Map Filters NONE Filters NONE Steam 1 RUN: e4af3659-f23f-418b-bc0d-5673d919d917